bitfinex/quotes_SOLUSD_20250924
["timestamp","ask_amount","ask_price","bid_price","bid_amount"]
[1758692050985,0.72,208.81,208.77,0.72]
[1758692051188,0.72,208.8,208.76,37.36]
[1758692051399,5.50950141,208.79,208.76,37.36]
[1758692051901,30.78950141,208.79,208.76,38.08]
[1758692052080,26.0,208.79,208.76,37.36]
[1758692052286,26.0,208.79,208.77,0.72]
[1758692052896,26.0,208.79,208.76,37.36]
[1758692053199,26.0,208.79,208.74,4.99058523]
[1758692053371,26.72,208.79,208.77,37.34]
[1758692054081,26.0,208.79,208.77,37.34]
[1758692054397,26.71,208.79,208.77,37.34]
[1758692054595,26.71,208.79,208.75,0.72]
[1758692054780,26.71,208.79,208.78,37.34]
[1758692055175,26.0,208.79,208.78,37.34]
[1758692055376,33.29037159,208.86,208.78,53.12543086]
[1758692055577,0.71,208.85,208.79,0.66]
[1758692056476,26.0,208.82,208.78,37.34]
[1758692056675,26.71,208.81,208.78,37.34]
[1758692056887,0.71,208.8,208.78,37.34]
[1758692057186,26.0,208.81,208.78,37.34]
[1758692057617,31.49904463,208.81,208.78,37.34]
[1758692057824,0.71,208.8,208.78,37.34]
[1758692057986,26.0,208.79,208.78,37.34]
[1758692058612,0.71,208.8,208.78,37.34]
[1758692058886,26.0,208.79,208.78,37.34]
[1758692059624,4.78950141,208.79,208.78,37.34]
[1758692060288,7.29032411,208.86,208.79,18.38509542]
[1758692060539,7.29032411,208.86,208.8,2.18983685]
[1758692060817,0.67,208.85,208.78,1.52983685]
[1758692060988,26.0,208.83,208.81,37.4]
[1758692061188,26.67,208.83,208.81,37.4]
[1758692061519,26.0,208.83,208.81,37.4]
[1758692061721,4.78837962,208.84,208.81,37.4]
[1758692061895,5.45837962,208.84,208.81,37.4]
[1758692062224,33.29047141,208.86,208.82,0.66]
[1758692062390,0.67,208.85,208.81,37.4]
[1758692062790,0.67,208.84,208.81,37.4]
[1758692063900,5.45839025,208.84,208.81,37.4]
[1758692064224,4.78839025,208.84,208.82,0.66]
[1758692064393,4.78839025,208.84,208.81,37.4]
[1758692064596,4.78839025,208.84,208.81,38.06]
[1758692064795,7.96035924,208.86,208.82,0.66]
[1758692065035,26.0,208.83,208.81,37.4]
[1758692065190,26.0,208.83,208.81,38.06]
[1758692066592,26.0,208.83,208.81,37.4]
[1758692066920,26.0,208.83,208.81,38.06]
[1758692067718,4.78842583,208.84,208.81,38.06]
[1758692068604,4.78842583,208.84,208.81,37.4]
[1758692068605,31.45842583,208.84,208.81,37.4]
[1758692068923,30.78842583,208.84,208.81,38.06]
[1758692069914,31.45842583,208.84,208.81,37.4]
[1758692070108,30.78842583,208.84,208.81,38.06]
[1758692070805,26.0,208.84,208.81,38.06]
[1758692071116,3.17242757,208.86,208.81,38.06]
[1758692071320,26.0,208.82,208.81,38.06]
[1758692071523,26.0,208.82,208.81,42.84904267]
[1758692071717,2.50242757,208.86,208.81,42.84904267]
[1758692071924,26.0,208.85,208.82,0.66]
[1758692072133,26.0,208.84,208.82,0.66]
[1758692072339,18.40273483,208.94,208.83,15.98462148]
[1758692072519,0.67,208.99,208.91,2.38902747]
[1758692072717,2.50189459,208.96,208.92,38.04]
[1758692073041,2.50189459,208.96,208.93,0.66]
[1758692073335,26.0,208.94,208.93,0.66]
[1758692074236,28.50189459,208.96,208.93,0.66]
[1758692074431,2.50189459,208.96,208.94,0.66]
[1758692074642,2.50189459,208.96,208.95,37.36]
[1758692075916,2.50238146,209.02,208.95,45.1948614]
[1758692076216,3.37122994,209.03,208.96,3.04902747]
[1758692076414,26.0,209.0,208.96,3.04902747]
[1758692076636,26.0,209.0,208.97,0.66]
[1758692076833,26.0,209.0,208.98,37.42]
[1758692077631,26.0,209.01,208.98,38.08]
[1758692078121,26.0,209.01,208.99,0.66]
[1758692078315,2.70122994,209.03,209.0,0.66]
[1758692078510,0.2,209.03,209.01,37.4]
[1758692079512,26.0,209.02,209.01,37.4]
[1758692079837,4.98405691,209.03,208.98,0.66]
[1758692080012,5.65405691,209.03,208.99,38.06]
[1758692080324,5.65405691,209.03,208.97,4.78536907]
[1758692080325,26.0,209.0,208.96,0.66]
[1758692080525,26.0,209.0,208.97,38.04]
[1758692080728,26.0,209.0,208.98,0.66]
[1758692081236,26.0,209.0,208.99,0.66]
[1758692081612,0.87,209.03,208.99,0.66]
[1758692081937,0.87,209.03,208.98,4.78512266]
[1758692082125,0.2,209.03,208.99,0.66]
[1758692082337,0.2,209.03,209.0,38.04]
[1758692083010,26.0,209.02,209.0,38.04]
[1758692083215,26.0,209.0,208.97,0.66]
[1758692083419,26.0,209.0,208.98,37.38]
[1758692084617,31.65403204,209.03,208.98,37.38]
[1758692084812,30.98403204,209.03,208.98,37.38]
[1758692085009,0.67,209.02,208.98,37.38]
[1758692085533,30.98403204,209.03,208.98,37.38]
[1758692085735,26.0,209.0,208.98,37.38]
[1758692086034,26.67,209.0,208.98,37.38]
[1758692086236,26.2,209.03,208.99,0.66]
[1758692086538,26.2,209.03,209.0,2.38902747]
[1758692086718,0.2,209.03,209.01,0.66]
[1758692086913,0.2,209.03,209.02,37.4]
[1758692087235,0.2,209.03,209.02,38.06]
[1758692087638,26.2,209.03,209.02,38.06]
[1758692088741,0.2,209.03,209.02,37.4]
[1758692089035,0.2,209.03,209.02,38.06]
[1758692089240,26.2,209.03,209.02,37.4]
[1758692090119,0.87,209.03,209.02,37.4]
[1758692091128,5.65400229,209.03,209.02,37.4]
[1758692092226,4.98400229,209.03,209.02,37.4]
[1758692093427,4.98400229,209.03,209.02,38.12]
[1758692093428,0.2,209.03,209.02,38.12]
[1758692093827,26.2,209.03,209.02,38.12]
[1758692094553,0.2,209.03,209.02,38.12]
[1758692094726,26.2,209.03,209.02,38.12]
[1758692095653,26.2,209.03,209.02,37.4]
[1758692096023,30.98400229,209.03,208.99,0.72]
[1758692096226,30.98400229,209.03,209.0,37.34]
[1758692096446,30.98400229,209.03,209.0,38.06]
[1758692097052,26.2,209.03,209.0,38.06]
[1758692099749,0.2,209.03,209.0,38.06]
[1758692100626,0.2,209.03,209.01,0.72]
[1758692101523,0.2,209.03,209.02,0.72]
[1758692101828,0.2,209.03,209.02,42.82423117]
[1758692102029,0.2,209.03,209.02,42.10423117]
[1758692102256,0.2,209.03,209.02,42.82423117]
[1758692106334,0.2,209.03,209.02,58.80885265]
[1758692106535,0.2,209.05,209.03,13.59559401]
[1758692106729,0.2,209.05,209.04,39.70902747]
[1758692106970,0.2,209.05,209.04,40.42902747]
[1758692107341,0.2,209.05,209.04,54.02462148]
[1758692107871,0.2,209.05,209.04,58.80839492]
[1758692111638,0.7,209.13,209.05,13.59559401]
[1758692111943,0.7,209.13,209.08,2.38902747]
[1758692112259,26.7,209.15,209.09,51.61559401]
[1758692112843,0.7,209.14,209.09,51.61559401]
[1758692113081,0.7,209.14,209.1,4.78240076]
[1758692113251,0.7,209.14,209.11,37.3]
[1758692113438,0.7,209.13,209.11,37.3]
[1758692113639,0.7,209.12,209.11,37.3]
[1758692116168,26.0,209.13,209.11,37.3]
[1758692116368,26.7,209.13,209.11,37.3]
[1758692116962,26.7,209.13,209.11,42.08215741]
[1758692117157,26.0,209.16,209.12,0.69]
[1758692117462,26.0,209.16,209.13,37.99]
[1758692117672,2.49983014,209.17,209.14,0.69]
[1758692117871,0.7,209.2,209.15,37.99]
[1758692118165,0.7,209.19,209.16,37.3]
[1758692118546,0.7,209.18,209.16,37.3]
[1758692120842,26.0,209.2,209.16,42.08102394]
[1758692121041,28.69957723,209.21,209.17,0.68]
[1758692121247,2.69957723,209.21,209.18,37.98]
[1758692121479,28.69957723,209.21,209.18,37.98]
[1758692122748,28.69957723,209.21,209.18,37.3]
[1758692122945,29.37957723,209.21,209.18,37.3]
[1758692123560,29.37957723,209.21,209.19,37.28]
[1758692123881,28.69957723,209.21,209.19,37.28]
[1758692124374,2.69957723,209.21,209.19,37.28]
[1758692125597,26.0,209.2,209.19,37.28]
[1758692125956,2.69957723,209.21,209.19,42.74032518]
[1758692126162,2.69957723,209.21,209.19,42.06032518]
[1758692126671,2.69957723,209.21,209.19,42.74032518]
[1758692127461,2.69957723,209.21,209.2,0.68]
[1758692127662,2.69957723,209.21,209.19,42.06032518]
[1758692127862,28.69957723,209.21,209.19,42.74032518]
[1758692128059,2.69957723,209.21,209.2,0.68]
[1758692128376,0.2,209.21,209.2,14.27559401]
[1758692129356,0.2,209.21,209.2,19.05570873]
[1758692131569,0.2,209.21,209.2,20.57916866]
[1758692134966,0.2,209.21,209.2,13.59559401]
[1758692135181,0.2,209.21,209.2,50.87559401]
[1758692135689,0.2,209.21,209.15,11.9528068]
[1758692135690,0.88,209.21,209.16,13.59559401]
[1758692135879,0.88,209.21,209.18,13.59559401]
[1758692136064,0.88,209.21,209.19,37.28]
[1758692136260,0.2,209.21,209.19,37.28]
[1758692137290,0.2,209.21,209.2,1.52345993]
[1758692138294,0.2,209.21,209.2,6.30357465]
[1758692138792,0.2,209.21,209.2,4.78011472]
[1758692139874,0.88,209.21,209.19,37.28]
[1758692140073,0.68,209.2,209.19,37.28]
[1758692140683,5.46016004,209.2,209.15,15.11905394]
[1758692140893,26.68,209.19,209.16,37.26]
[1758692141093,0.68,209.18,209.16,37.26]
[1758692142306,26.0,209.19,209.16,37.26]
[1758692142698,0.2,209.21,209.17,5.4608003]
[1758692142897,0.2,209.21,209.18,37.94]
[1758692143878,26.2,209.21,209.18,42.72041966]
[1758692144073,26.2,209.21,209.19,0.68]
[1758692144297,26.2,209.21,209.2,37.26]
[1758692144491,0.2,209.21,209.2,37.26]
[1758692144672,0.2,209.21,209.15,13.59559401]
[1758692144673,0.88,209.21,209.15,14.27559401]
[1758692144877,0.68,209.2,209.16,42.04100969]
[1758692145577,0.68,209.2,209.16,42.72100969]
[1758692145990,0.2,209.21,209.17,13.59559401]
[1758692146199,26.0,209.19,209.18,37.26]
[1758692146788,0.2,209.21,209.18,37.26]
[1758692146991,0.2,209.21,209.18,37.94]
[1758692147178,0.2,209.21,209.18,37.26]
[1758692147378,0.88,209.21,209.18,37.26]
[1758692147576,0.2,209.21,209.18,37.26]
[1758692147778,26.2,209.21,209.18,37.94]
[1758692147981,26.2,209.21,209.19,5.46028328]
[1758692148183,26.2,209.21,209.2,37.26]
[1758692148378,0.2,209.21,209.2,37.26]
[1758692148685,0.2,209.21,209.2,37.94]
[1758692149402,0.2,209.21,209.2,37.26]
[1758692149784,0.2,209.21,209.2,42.04011472]
[1758692149991,0.2,209.21,209.2,56.31570873]
[1758692154595,0.1,209.27,209.2,56.31570873]
[1758692154596,1e-08,209.27,209.25,26.0]
[1758692154783,1e-08,209.27,209.26,66.75905394]
[1758692154974,1e-08,209.27,209.26,67.46905394]
[1758692155300,1e-08,209.27,209.26,67.94692835]
[1758692155602,1e-08,209.27,209.26,53.56692835]
[1758692155788,1e-08,209.27,209.26,58.34567249]
[1758692155992,1e-08,209.29,209.26,70.29253285]
[1758692156194,1e-08,209.29,209.27,14.30559401]
[1758692156506,1e-08,209.29,209.28,52.65905394]
[1758692156796,1e-08,209.29,209.28,53.36905394]
[1758692156974,1e-08,209.29,209.28,15.82905394]
[1758692157175,1e-08,209.29,209.28,14.30559401]
[1758692157373,1e-08,209.29,209.28,15.82905394]
[1758692157601,1e-08,209.29,209.28,53.32905394]
[1758692157787,1e-08,209.29,209.28,58.1073414]
[1758692158183,1e-08,209.29,209.28,19.08388147]
[1758692158381,1e-08,209.29,209.28,19.8973414]
[1758692158602,1e-08,209.29,209.28,57.3973414]
[1758692158799,1e-08,209.29,209.28,58.1073414]
[1758692163484,1e-08,209.29,209.28,35.24926226]
[1758692163681,1e-08,209.29,209.28,72.76926226]
[1758692165993,1e-08,209.29,209.28,33.72580233]
[1758692166299,1e-08,209.29,209.28,72.03926226]
[1758692166787,0.70000001,209.29,209.28,18.37388147]
[1758692166993,0.70000001,209.29,209.28,55.87388147]
[1758692167626,0.2,209.35,209.29,13.59559401]
[1758692167791,0.1,209.39,209.36,16.71761558]
[1758692168114,0.1,209.39,209.38,15.11905394]
[1758692168810,0.1,209.39,209.38,52.85905394]
[1758692169800,0.1,209.39,209.38,57.63505928]
[1758692170720,0.8,209.39,209.38,18.37159935]
[1758692170892,0.8,209.39,209.38,56.09159935]
[1758692171423,0.1,209.39,209.38,56.09159935]
[1758692172720,0.1,209.39,209.38,56.80159935]
[1758692174416,0.1,209.41,209.39,13.59559401]
[1758692174721,0.1,209.41,209.4,52.95905394]
[1758692174927,0.1,209.41,209.4,53.64905394]
[1758692175896,0.1,209.41,209.4,58.42460312]
[1758692176116,0.1,209.41,209.4,57.69460312]
[1758692176301,0.76,209.41,209.4,57.69460312]
[1758692176496,0.76,209.41,209.4,56.17114319]
[1758692177218,0.1,209.41,209.4,57.69460312]
[1758692178502,0.1,209.41,209.4,58.38460312]
[1758692182611,0.1,209.41,209.4,58.34460312]
[1758692183012,0.1,209.41,209.4,57.65460312]
[1758692183608,0.1,209.41,209.4,19.89460312]
[1758692183809,0.1,209.41,209.4,57.63460312]
[1758692184619,0.1,209.41,209.4,58.34460312]
[1758692186522,1e-08,209.41,209.4,58.34460312]
[1758692187426,1e-08,209.41,209.4,56.78114319]
[1758692187724,1e-08,209.41,209.4,58.30460312]
[1758692188029,1e-08,209.41,209.4,57.59460312]
[1758692188522,1e-08,209.41,209.4,56.07114319]
[1758692188727,1e-08,209.41,209.4,58.4456976]
[1758692190316,1e-08,209.41,209.4,18.37114319]
[1758692190529,1e-08,209.41,209.4,56.09114319]
[1758692191115,1e-08,209.41,209.4,18.37114319]
[1758692191310,0.66000001,209.41,209.4,56.09114319]
[1758692192312,0.66000001,209.41,209.4,18.37114319]
[1758692192512,0.66000001,209.41,209.4,56.07114319]
[1758692193026,1e-08,209.41,209.4,59.1556976]
[1758692193813,1e-08,209.41,209.4,21.4556976]
[1758692194017,1e-08,209.41,209.4,58.4456976]
[1758692194412,1e-08,209.41,209.4,21.4556976]
[1758692194611,1e-08,209.41,209.4,59.1356976]
[1758692196119,1e-08,209.41,209.4,58.4256976]
[1758692196435,1e-08,209.41,209.4,59.1356976]
[1758692197124,1e-08,209.41,209.4,20.7456976]
[1758692197636,1e-08,209.41,209.4,58.4056976]
[1758692198012,1e-08,209.41,209.4,20.7456976]
[1758692198213,1e-08,209.41,209.4,58.4056976]
[1758692198414,1e-08,209.41,209.4,58.3856976]
[1758692199814,1e-08,209.41,209.4,20.7456976]
[1758692200013,1e-08,209.41,209.4,58.3856976]
[1758692200834,1e-08,209.41,209.4,18.37114319]
[1758692201036,0.66000001,209.41,209.4,18.37114319]
[1758692201339,1e-08,209.41,209.4,55.99114319]
[1758692202024,1e-08,209.41,209.4,58.3656976]
[1758692202222,1e-08,209.41,209.4,20.7456976]
[1758692202429,1e-08,209.41,209.4,58.3456976]
[1758692203146,1e-08,209.41,209.4,20.7456976]
[1758692203335,1e-08,209.41,209.4,58.3456976]
[1758692204036,1e-08,209.41,209.4,20.7456976]
[1758692204228,1e-08,209.41,209.4,58.3456976]
[1758692205041,1e-08,209.41,209.4,58.3256976]
[1758692205731,1e-08,209.41,209.4,59.0356976]
[1758692206123,1e-08,209.41,209.4,20.7456976]
[1758692206435,1e-08,209.41,209.4,58.3056976]
[1758692207036,1e-08,209.41,209.4,20.7456976]
[1758692207231,1e-08,209.41,209.4,58.3056976]
[1758692207660,1e-08,209.41,209.4,59.0156976]
[1758692208528,1e-08,209.41,209.4,21.4556976]
[1758692208728,1e-08,209.41,209.4,59.0156976]
[1758692209624,1e-08,209.41,209.4,58.3056976]
[1758692209821,0.66000001,209.41,209.4,18.37114319]
[1758692210046,0.66000001,209.41,209.4,55.91114319]
[1758692210547,1e-08,209.41,209.4,56.62114319]
[1758692210748,1e-08,209.41,209.4,58.2856976]
[1758692211130,1e-08,209.41,209.4,58.9956976]
[1758692211526,1e-08,209.41,209.4,20.7456976]
[1758692211755,1e-08,209.41,209.4,58.2856976]
[1758692212653,1e-08,209.41,209.4,55.91114319]
[1758692213943,1e-08,209.41,209.4,18.37114319]
[1758692214142,1e-08,209.41,209.4,55.91114319]
[1758692214345,1e-08,209.41,209.4,55.89114319]
[1758692214835,1e-08,209.41,209.4,18.37114319]
[1758692215455,1e-08,209.41,209.4,55.87114319]
[1758692216362,1e-08,209.41,209.4,18.37114319]
[1758692216546,1e-08,209.41,209.4,55.87114319]
[1758692217251,1e-08,209.41,209.4,55.85114319]
[1758692217857,1e-08,209.41,209.4,18.37114319]
[1758692218062,1e-08,209.41,209.4,55.85114319]
[1758692219060,1e-08,209.41,209.4,18.37114319]
[1758692219264,1e-08,209.41,209.4,55.85114319]
[1758692220249,1e-08,209.41,209.4,18.37114319]
[1758692220441,1e-08,209.41,209.4,55.83114319]
[1758692220643,0.1,209.5,209.41,53.95559401]
[1758692220843,0.1,209.5,209.49,13.59559401]
[1758692221251,0.1,209.5,209.49,18.36909155]
[1758692221453,0.1,209.5,209.49,20.74364596]
[1758692221657,0.1,209.5,209.49,58.20364596]
[1758692222947,0.71,209.54,209.49,58.91364596]
[1758692223152,0.71,209.56,209.53,13.59559401]
[1758692223349,0.71,209.56,209.55,13.59559401]
[1758692224060,0.71,209.56,209.55,18.36772476]
[1758692225169,28.49473199,209.6,209.55,18.36772476]
[1758692225475,2.49473199,209.6,209.57,13.59559401]
[1758692225657,0.71,209.59,209.58,51.03559401]
[1758692226062,2.49473199,209.6,209.59,18.36681401]
[1758692226372,0.1,209.62,209.59,18.36681401]
[1758692226556,0.1,209.62,209.61,13.59559401]
[1758692226754,1e-08,209.62,209.61,15.97014842]
[1758692226950,1e-08,209.62,209.61,16.68014842]
[1758692227151,1e-08,209.62,209.61,14.30559401]
[1758692227352,1e-08,209.62,209.61,54.18014842]
[1758692227870,0.1,209.71,209.61,54.18014842]
[1758692228080,0.1,209.71,209.68,4.76917207]
[1758692228081,0.71,209.7,209.68,4.76917207]
[1758692228249,0.1,209.71,209.69,51.09559401]
[1758692228845,0.71,209.7,209.69,51.09559401]
[1758692229050,26.1,209.71,209.69,40.61974365]
[1758692229271,0.71,209.7,209.65,13.59559401]
[1758692229568,0.71,209.69,209.67,13.59559401]
[1758692229871,26.1,209.71,209.68,37.54]
[1758692229872,26.0,209.7,209.68,37.54]
[1758692230171,26.0,209.7,209.69,37.52]
[1758692230381,26.71,209.7,209.69,37.52]
[1758692230964,0.71,209.7,209.69,37.52]
[1758692231183,26.71,209.7,209.69,37.52]
[1758692232281,31.47871721,209.7,209.62,13.59559401]
[1758692232486,0.71,209.69,209.63,37.5]
[1758692232655,0.71,209.68,209.63,37.5]
[1758692232980,0.71,209.67,209.63,37.5]
[1758692233178,0.71,209.66,209.63,37.5]
[1758692233365,0.71,209.65,209.63,37.5]
[1758692233567,0.71,209.64,209.63,37.5]
[1758692236759,0.71,209.64,209.6,13.59559401]
[1758692237082,0.71,209.63,209.61,37.48]
[1758692237297,0.71,209.62,209.57,13.59559401]
[1758692237473,0.71,209.61,209.55,18.36772452]
[1758692237678,0.71,209.6,209.57,13.59559401]
[1758692237976,0.71,209.59,209.57,13.59559401]
[1758692239296,0.71,209.68,209.58,6.10227345]
[1758692239469,0.71,209.68,209.57,18.36710936]
[1758692239470,0.71,209.68,209.6,15.97014842]
[1758692239792,0.1,209.71,209.6,13.59559401]
[1758692239793,0.71,209.67,209.6,13.59559401]
[1758692239970,5.47962701,209.66,209.61,37.64]
[1758692240157,0.71,209.65,209.61,37.64]
[1758692240360,0.71,209.64,209.61,37.64]
[1758692240789,30.76962701,209.66,209.61,37.64]
[1758692241097,26.68,209.63,209.61,37.64]
[1758692241300,0.68,209.62,209.61,37.64]
[1758692242590,26.68,209.64,209.61,37.64]
[1758692242801,26.0,209.63,209.61,37.64]
[1758692243094,26.68,209.63,209.61,37.64]
[1758692243459,0.68,209.65,209.61,42.41068728]
[1758692243768,0.68,209.64,209.61,37.64]
[1758692243956,0.1,209.71,209.62,13.59559401]
[1758692244162,0.68,209.7,209.62,14.25559401]
[1758692244384,0.68,209.69,209.62,14.25559401]
[1758692245298,0.68,209.69,209.64,13.59559401]
[1758692245595,0.68,209.69,209.65,37.62]
[1758692246291,0.1,209.71,209.69,13.59559401]
[1758692246603,0.1,209.71,209.7,51.31559401]
[1758692246982,0.1,209.71,209.7,51.97559401]
[1758692247293,0.1,209.71,209.7,54.35014842]
[1758692247463,0.1,209.71,209.7,57.37762619]
[1758692248205,0.1,209.71,209.7,59.77178899]
[1758692248791,0.1,209.71,209.7,61.2874899]
[1758692249683,0.1,209.71,209.7,59.77178899]
[1758692250087,0.1,209.71,209.7,56.08431122]
[1758692250894,0.78,209.71,209.64,0.66]
[1758692251196,0.78,209.71,209.65,54.34266751]
[1758692251396,0.78,209.71,209.67,13.59559401]
[1758692251574,0.78,209.71,209.68,40.74587295]
[1758692251898,0.68,209.7,209.69,3.02587295]
[1758692252283,0.1,209.71,209.69,4.76894463]
[1758692252792,0.78,209.71,209.69,4.76894463]
[1758692253582,0.78,209.71,209.68,4.76917207]
[1758692253875,0.78,209.71,209.7,37.7]
[1758692254193,0.78,209.71,209.67,13.59559401]
[1758692254381,0.68,209.7,209.68,37.68]
[1758692254577,0.68,209.7,209.63,12.58545943]
[1758692254578,0.68,209.69,209.63,12.58545943]
[1758692254779,0.68,209.69,209.64,56.04567605]
[1758692255091,0.68,209.68,209.64,56.04567605]
[1758692255398,4.86849609,209.71,209.64,56.04567605]
[1758692255714,0.68,209.68,209.64,56.04567605]
[1758692256074,0.68,209.68,209.65,42.44980246]
[1758692256273,0.68,209.67,209.66,37.68]
[1758692257072,0.68,209.67,209.64,13.59559401]
[1758692257289,0.68,209.67,209.65,37.66]
[1758692257792,0.68,209.66,209.55,14.19464522]
[1758692257989,0.68,209.66,209.59,13.59559401]
[1758692258177,0.68,209.66,209.61,13.59559401]
[1758692258381,0.68,209.65,209.61,13.59559401]
[1758692258576,30.76925627,209.68,209.61,13.59559401]
[1758692258801,0.68,209.64,209.61,13.59559401]
[1758692259294,0.68,209.66,209.62,4.77053716]
[1758692259478,0.1,209.71,209.63,37.64]
[1758692259678,0.68,209.7,209.64,13.59559401]
[1758692259977,0.68,209.69,209.64,13.59559401]
[1758692260177,0.1,209.71,209.64,13.59559401]
[1758692260178,0.68,209.68,209.64,13.59559401]
[1758692260494,0.68,209.67,209.64,13.59559401]
[1758692260685,0.1,209.71,209.65,0.66]
[1758692260882,0.1,209.71,209.66,37.64]
[1758692261081,0.68,209.7,209.66,37.64]
[1758692261286,0.68,209.7,209.67,4.76939953]
[1758692262597,0.68,209.7,209.66,42.40960265]
[1758692263179,0.68,209.69,209.66,37.64]
[1758692263394,0.68,209.69,209.65,4.76982623]
[1758692263706,0.68,209.69,209.66,37.62]
[1758692264804,26.0,209.69,209.66,37.62]
[1758692264974,0.68,209.68,209.63,4.77011672]
[1758692265182,26.0,209.7,209.64,38.26]
[1758692265486,26.0,209.68,209.64,38.26]
[1758692265899,26.0,209.68,209.64,37.6]
[1758692266097,26.0,209.68,209.65,0.66]
[1758692266492,0.68,209.7,209.65,5.42970421]
[1758692266691,0.68,209.7,209.66,0.66]
[1758692266993,0.68,209.7,209.67,37.58]
[1758692267197,4.86849096,209.71,209.67,37.58]
[1758692267383,26.0,209.68,209.67,37.58]
[1758692267806,0.1,209.71,209.67,37.58]
[1758692267982,0.68,209.7,209.67,37.58]
[1758692270015,0.1,209.71,209.67,37.58]
[1758692270016,0.1,209.71,209.67,42.34932883]
[1758692270514,0.78,209.71,209.67,43.04932883]
[1758692272712,0.1,209.71,209.67,43.04932883]
[1758692273580,0.1,209.71,209.67,42.34932883]
[1758692273885,0.1,209.71,209.68,0.7]
[1758692274091,0.1,209.71,209.67,42.34932883]
[1758692274092,0.1,209.71,209.69,0.7]
[1758692274307,0.1,209.71,209.7,37.52]
[1758692274520,4.8684977,209.71,209.7,37.52]
[1758692275224,0.1,209.71,209.7,37.52]
[1758692275749,26.1,209.71,209.7,37.52]
[1758692275894,26.82,209.71,209.66,14.29559401]
[1758692276095,26.82,209.71,209.67,37.52]
[1758692276331,0.1,209.71,209.67,37.52]
[1758692276691,0.82,209.71,209.67,38.22]
[1758692277308,0.1,209.71,209.67,37.52]
[1758692277509,2.4933026,209.7,209.68,0.7]
[1758692280208,2.4933026,209.7,209.65,11.92463629]
[1758692280209,2.4933026,209.7,209.66,0.7]
[1758692280407,26.0,209.68,209.67,37.48]
[1758692280822,2.4933026,209.7,209.67,38.18]
[1758692280994,2.4933026,209.7,209.68,0.7]
[1758692281200,2.4933026,209.7,209.69,0.7]
[1758692282834,2.4933026,209.7,209.69,19.06453864]
[1758692286943,0.72,209.7,209.59,14.33726015]
[1758692287131,2.49314381,209.7,209.66,13.59559401]
[1758692287455,2.49314381,209.7,209.68,13.59559401]
[1758692287658,0.72,209.69,209.67,37.5]
[1758692288170,26.72,209.68,209.64,13.59559401]
[1758692288335,26.72,209.68,209.65,37.66]
[1758692288336,26.0,209.68,209.65,37.66]
[1758692289042,0.72,209.69,209.65,43.12963793]
[1758692289733,2.49314381,209.7,209.66,14.29559401]
[1758692289948,2.49314381,209.7,209.68,13.59559401]
[1758692290128,2.49314381,209.7,209.69,51.25559401]
[1758692290732,0.1,209.71,209.7,13.59559401]
[1758692290959,0.1,209.71,209.7,19.06431122]
[1758692293554,2.09287817,209.73,209.7,19.06431122]
[1758692293747,2.09287817,209.73,209.72,4.76826244]
[1758692293950,0.72,209.76,209.65,11.924464]
[1758692293951,26.0,209.76,209.65,11.924464]
[1758692294129,0.69,209.72,209.66,37.64]